fUSD/lending_fUSD_20260322
["ID","MTS","AMOUNT","RATE_DAILY","PERIOD"]
[408744179,1774185066517,-156.587,0.00043779,60]
[408744180,1774185066526,-500.0,0.00043779,60]
[408744181,1774185066536,-250.0,0.00043779,60]
[408744182,1774185066545,-250.0,0.00043779,60]
[408744183,1774185066555,-500.0,0.00043779,60]
[408744184,1774185066564,-500.0,0.00043779,60]
[408744185,1774185066574,-500.0,0.00043779,60]
[408744186,1774185066585,-162.380719,0.00043779,60]
[408744187,1774185066594,-500.0,0.00043779,60]
[408744188,1774185066604,-250.0,0.00043779,60]
[408744189,1774185066614,-250.0,0.00043779,60]
[408744190,1774185066624,-518.5,0.00043779,60]
[408744191,1774185066633,-500.0,0.00043779,60]
[408744192,1774185066643,-500.0,0.00043779,60]
[408744193,1774185066653,-168.3888056,0.00043779,60]
[408744194,1774185066663,-250.0,0.00043779,60]
[408744195,1774185066672,-500.0,0.00043779,60]
[408744196,1774185066682,-500.0,0.00043779,60]
[408744197,1774185066692,-537.6845,0.00043779,60]
[408744198,1774185066702,-174.61919141,0.00043779,60]
[408744199,1774185066712,-250.0,0.00043779,60]
[408744200,1774185066722,-500.0,0.00043779,60]
[408744201,1774185066733,-500.0,0.00043779,60]
[408744202,1774185066742,-557.5788265,0.00043779,60]
[408744203,1774185066755,-181.08010149,0.00043779,60]
[408744204,1774185066764,-250.0,0.00043779,60]
[408744205,1774185066773,-500.0,0.00043779,60]
[408744206,1774185066782,-578.20924308,0.00043779,60]
[408744207,1774185066792,-187.78006525,0.00043779,60]
[408744208,1774185066801,-250.0,0.00043779,60]
[408744209,1774185066810,-500.0,0.00043779,60]
[408744210,1774185066821,-599.60298507,0.00043779,60]
[408744211,1774185066830,-194.72792766,0.00043779,60]
[408744212,1774185066840,-775.7818209,0.0004378,30]
[408744213,1774185066849,-432.94003122,0.0004378,30]
[408744214,1774185066858,-348089.12616401,0.0004378,60]
[408744215,1774185068735,-269.60787005,0.00012682,2]
[408744216,1774185069410,-1153.567646,0.0001209,2]
[408744217,1774185069420,-479.23393576,0.00012682,2]
[408744218,1774185069429,-1098.0,0.00027552,2]
[408744219,1774185069438,-768.0,0.00028767,10]
[408744220,1774185069447,-795.0,0.00029535,10]
[408744221,1774185069456,-151.0,0.000326,7]
[408744222,1774185069465,-200.639954,0.00032877,7]
[408744223,1774185069475,-3759.0,0.00034003,2]
[408744224,1774185069484,-498.221411,0.00038356,120]
[408744225,1774185069493,-498.221411,0.00038356,120]
[408744226,1774185069503,-498.221411,0.00038356,120]
[408744227,1774185069512,-498.221411,0.00041702,120]
[408744228,1774185069522,-498.221411,0.00041702,120]
[408744229,1774185069531,-498.221411,0.00041702,120]
[408744230,1774185069540,-200.639954,0.000423,120]
[408744231,1774185069549,-41.99290096,0.000423,120]
[408744232,1774185069565,-109.00709904,0.000423,120]
[408744233,1774185069575,-300.0,0.00042471,2]
[408744234,1774185069585,-250.0,0.00043779,60]
[408744235,1774185069595,-500.0,0.00043779,60]
[408744236,1774185069605,-500.0,0.00043779,60]
[408744237,1774185069615,-201.93286099,0.00043779,60]
[408744238,1774185069624,-250.0,0.00043779,60]
[408744239,1774185069634,-500.0,0.00043779,60]
[408744240,1774185069643,-500.0,0.00043779,60]
[408744241,1774185069653,-250.0,0.00043779,60]
[408744242,1774185069662,-170.0,0.00043779,60]
[408744243,1774185069672,-250.0,0.00043779,60]
[408744244,1774185069681,-500.0,0.00043779,60]
[408744245,1774185069690,-209.40437684,0.00043779,60]
[408744246,1774185069700,-250.0,0.00043779,60]
[408744247,1774185069709,-176.29,0.00043779,60]
[408744248,1774185069718,-250.0,0.00043779,60]
[408744249,1774185069728,-500.95240318,0.00043779,60]
[408744250,1774185069748,-120.83589234,0.00043779,60]
[408744251,1774185069760,-500.0,0.00043779,60]
[408744252,1774185069769,-500.0,0.00043779,60]
[408744253,1774185069779,-217.15233878,0.00043779,60]
[408744254,1774185069788,-220.62707987,0.00043779,60]
[408744255,1774185069801,-29.37292013,0.00043779,60]
[408744256,1774185069811,-182.81273,0.00043779,60]
[408744257,1774185069820,-250.0,0.00043779,60]
[408744258,1774185069831,-355.35857627,0.00043779,60]
[408744259,1774185267467,277.32,0.00016,120]
[408744261,1774185456058,226.08,0.00016,120]
[408744266,1774185617700,273.67,0.00017,60]
[408744268,1774185642539,462.29,0.00016,120]
[408744269,1774185672387,2377.34,5.861e-05,2]
[408744270,1774185672584,2377.34,6.169e-05,2]
[408744271,1774185672787,2377.34,6.478e-05,2]
[408744272,1774185672978,2377.34,6.786e-05,2]
[408744273,1774185673179,490.65,7.094e-05,2]
[408744274,1774185673202,1886.69,7.094e-05,2]
[408744275,1774185673374,2377.34,7.403e-05,2]
[408744276,1774185673844,2377.34,7.711e-05,2]
[408744277,1774185673885,2377.34,8.02e-05,2]
[408744278,1774185673973,981.3,8.328e-05,2]
[408744279,1774185673996,1396.04,8.328e-05,2]
[408744280,1774185675341,2377.34,8.637e-05,2]
[408744281,1774185675395,2377.34,8.945e-05,2]
[408744282,1774185675446,2377.34,9.254e-05,2]
[408744283,1774185675496,1471.95,9.562e-05,2]
[408744284,1774185675519,905.39,9.562e-05,2]
[408744285,1774185675565,2377.34,9.871e-05,2]
[408744286,1774185675613,2377.34,0.00010179,2]
[408744287,1774185675652,2377.34,0.00010488,2]
[408744289,1774185676087,1962.6,0.00010796,2]
[408744290,1774185676108,414.74,0.00010796,2]
[408744291,1774185676155,2377.34,0.00011105,2]
[408744298,1774185840320,508.44,0.00016,120]
[408744306,1774186031465,739.02,0.00016,120]
[408744307,1774186044867,202.46,0.00017,60]
[408744309,1774186074935,225.0,0.00010085,2]
[408744310,1774186075370,225.0,0.00010995,2]
[408744312,1774186098445,150.0,0.00011032,2]
[408744313,1774186113082,200.0,0.00011051,2]
[408744314,1774186119465,1942.88037675,0.0001,2]
[408744317,1774186140449,7707.12962325,9.5e-05,3]
[408744318,1774186140476,10000.01,9.5e-05,3]
[408744319,1774186140501,10000.01,9.5e-05,3]
[408744320,1774186140526,10000.01,9.5e-05,3]
[408744321,1774186140551,10000.01,9.5e-05,3]
[408744322,1774186140576,10000.01,9.5e-05,3]
[408744323,1774186140601,10000.01,9.5e-05,3]
[408744324,1774186140625,10000.01,9.5e-05,3]
[408744325,1774186140648,10000.01,9.5e-05,3]
[408744326,1774186140671,10000.01,9.5e-05,3]
[408744334,1774186214451,-300.0,9.499e-05,2]
[408744335,1774186214481,-1200.0,9.499e-05,2]
[408744336,1774186214508,-284.0,9.499e-05,2]
[408744337,1774186214536,-150.0,9.499e-05,2]
[408744338,1774186222539,762.46,0.00016,120]
[408744339,1774186224511,150.01,8.673e-05,2]
[408744340,1774186228943,982.0,9.499e-05,2]
[408744341,1774186228965,322.57430202,9.499e-05,2]
[408744348,1774186231273,-374.73643676,9.5e-05,3]
[408744350,1774186231285,-735.39664,9.5e-05,3]
[408744351,1774186231296,-317.765,9.5e-05,3]
[408744352,1774186231334,-101841.18880449,9.5e-05,3]
[408744353,1774186231344,-12704.71869545,0.0001,2]
[408744354,1774186231353,-5000.0,0.00010449,2]
[408744355,1774186231363,-1680.0,0.00010449,2]
[408744356,1774186231373,-255.0,0.00010449,2]
[408744357,1774186231382,-2000.0,0.00011298,2]
[408744358,1774186231392,-250.0,0.00011302,2]
[408744359,1774186231402,-289.8006139,0.00011302,2]
[408744360,1774186231411,-300.18771834,0.00011305,2]
[408744361,1774186231421,-190.03725788,0.00011313,2]
[408744362,1774186231431,-250.0,0.00011333,2]
[408744363,1774186231440,-1852.42,0.00011334,2]
[408744364,1774186231450,-150.0,0.000114,2]
[408744365,1774186231460,-2377.34,0.00011413,2]
[408744366,1774186231471,-5000.0,0.00011468,2]
[408744367,1774186231481,-2055.0,0.00011494,2]
[408744368,1774186231491,-433.0,0.00011494,2]
[408744369,1774186231501,-160.03,0.00011534,2]
[408744371,1774186231511,-226.9339029,0.00011545,2]
[408744372,1774186231520,-3688.1,0.00011675,2]
[408744374,1774186231529,-2377.34,0.00011721,2]
[408744376,1774186231539,-436.25033601,0.00011738,2]
[408744378,1774186231549,-95877.1454537,0.00011748,2]
[408744380,1774186231561,-118889.41391459,0.00011748,2]
[408744382,1774186231573,-2240.0,0.00011748,2]
[408744384,1774186231589,-1241.33099722,0.00011748,2]
[408744443,1774186237362,-19478.87600517,0.00011748,2]
[408744444,1774186237375,-2427.57757464,0.00011748,2]
[408744445,1774186237387,-450.73459801,0.00011748,2]
[408744446,1774186237423,-10730.39956839,0.00011748,2]
[408744447,1774186237435,-1248664.52188828,0.00011748,2]
[408744448,1774186237444,-503.75577573,0.00011773,2]
[408744449,1774186237454,-500.0,0.00011773,2]
[408744478,1774186237843,-504.9390148,0.00011773,2]
[408744480,1774186237853,-500.0,0.00011773,2]
[408744482,1774186237863,-500.0,0.00011773,2]
[408744484,1774186237872,-164.18030866,0.00011773,2]
[408744486,1774186237882,-500.0,0.00011773,2]
[408744488,1774186237892,-500.0,0.00011773,2]
[408744490,1774186237901,-500.0,0.00011773,2]
[408744492,1774186237910,-500.37225964,0.00011773,2]
[408744494,1774186237920,-167.41151456,0.00011773,2]
[408744496,1774186237933,-501.05441945,0.00011773,2]
[408744497,1774186237942,-500.0,0.00011773,2]
[408744500,1774186237951,-10012.77639512,0.000118,2]
[408744502,1774186237961,-9187.09,0.00011849,2]
[408744503,1774186237971,-999.99,0.00011849,2]
[408744505,1774186237980,-83010.97,0.00011849,2]
[408744507,1774186237990,-7597.46,0.00011849,2]
[408744510,1774186237999,-9999.99,0.00011849,2]
[408744512,1774186238009,-500.0,0.00011873,2]
[408744513,1774186238019,-500.0,0.00011873,2]
[408744515,1774186238029,-500.0,0.00011873,2]
[408744517,1774186238038,-500.0,0.00011873,2]
[408744519,1774186238048,-500.45556563,0.00011873,2]
[408744521,1774186238058,-1089.51,0.00011873,2]
[408744523,1774186238070,-150.99,0.000119,2]
[408744526,1774186238080,-150.99,0.000119,2]
[408744527,1774186238090,-3850.46,0.000119,2]
[408744529,1774186238100,-7058.53968904,0.000119,2]
[408744688,1774186239647,-363.98,0.000119,2]
[408744690,1774186239659,-279.745,0.000119,2]
[408744693,1774186239683,-2297.72531096,0.000119,2]
[408744695,1774186239693,-986.86912423,0.000119,2]
[408744759,1774186240789,-1634.09468468,0.000119,2]
[408744760,1774186240801,-1117.08,0.000119,2]
[408744761,1774186240819,-397.09909653,0.000119,2]
[408744762,1774186240861,-5864.84709456,0.000119,2]
[408744763,1774186240871,-4117.79,0.000119,2]
[408744764,1774186240881,-153.79682416,0.00011998,2]
[408744765,1774186240890,-500.0,0.00011998,2]
[408744766,1774186240899,-649.46587895,0.00011998,2]
[408744767,1774186240909,-500.0,0.00011998,2]
[408744768,1774186240918,-649.46587895,0.00011998,2]
[408744769,1774186240928,-500.0,0.00011998,2]
[408744770,1774186240937,-649.46587895,0.00011998,2]
[408744771,1774186240946,-388.434,0.00011998,2]
[408744772,1774186240955,-649.46587895,0.00011998,2]
[408744773,1774186240965,-649.46587895,0.00011998,2]
[408744774,1774186240973,-649.46587895,0.00011998,2]
[408744775,1774186240983,-649.46587895,0.00011998,2]
[408744776,1774186240992,-649.46587895,0.00011998,2]
[408744777,1774186241001,-649.46587895,0.00011998,2]
[408744778,1774186241011,-649.46587895,0.00011998,2]
[408744779,1774186241019,-649.46587895,0.00011998,2]
[408744780,1774186241029,-649.46587895,0.00011998,2]
[408744781,1774186241038,-649.46587895,0.00011998,2]
[408744782,1774186241047,-649.46587895,0.00011998,2]
[408744783,1774186241056,-649.46587895,0.00011998,2]
[408744784,1774186241071,-649.46587895,0.00011998,2]
[408744785,1774186241081,-649.46587895,0.00011998,2]
[408744786,1774186241091,-649.46587895,0.00011998,2]
[408744787,1774186241100,-649.46587895,0.00011998,2]
[408744788,1774186241111,-649.46587895,0.00011998,2]
[408744789,1774186241122,-649.46587895,0.00011998,2]
[408744790,1774186241133,-649.46587895,0.00011998,2]
[408744791,1774186241143,-649.46587895,0.00011998,2]
[408744792,1774186241152,-649.46587895,0.00011998,2]
[408744793,1774186241162,-649.46587895,0.00011998,2]
[408744794,1774186241173,-649.46587895,0.00011998,2]
[408744795,1774186241183,-649.46587895,0.00011998,2]
[408744796,1774186241193,-649.46587895,0.00011998,2]
[408744797,1774186241203,-649.46587895,0.00011998,2]
[408744798,1774186241212,-649.46587895,0.00011998,2]
[408744799,1774186241222,-649.46587895,0.00011998,2]
[408744800,1774186241231,-649.46587895,0.00011998,2]
[408744801,1774186241240,-649.46587895,0.00011998,2]
[408744802,1774186241249,-649.46587895,0.00011998,2]
[408744803,1774186241258,-649.46587895,0.00011998,2]
[408744804,1774186241268,-649.46587895,0.00011998,2]
[408744805,1774186241277,-649.46587895,0.00011998,2]
[408744806,1774186241286,-649.46587895,0.00011998,2]
[408744807,1774186241295,-649.46587895,0.00011998,2]
[408744808,1774186241304,-649.46587895,0.00011998,2]
[408744809,1774186241314,-649.46587895,0.00011998,2]
[408744810,1774186241323,-649.46587895,0.00011998,2]
[408744811,1774186241333,-649.46587895,0.00011998,2]
[408744812,1774186241342,-649.46587895,0.00011998,2]
[408744813,1774186241352,-649.46587895,0.00011998,2]
[408744814,1774186241361,-649.46587895,0.00011998,2]
[408744815,1774186241370,-649.46587895,0.00011998,2]
[408744816,1774186241380,-642.97122016,0.00011998,2]
[408744817,1774186241389,-642.97122016,0.00011998,2]
[408744818,1774186241398,-642.97122016,0.00011998,2]
[408744819,1774186241408,-642.97122016,0.00011998,2]
[408744820,1774186241418,-642.97122016,0.00011998,2]
[408744821,1774186241427,-642.97122016,0.00011998,2]
[408744822,1774186241435,-642.97122016,0.00011998,2]
[408744823,1774186241444,-642.97122016,0.00011998,2]
[408744824,1774186241454,-642.97122016,0.00011998,2]
[408744825,1774186241463,-642.97122016,0.00011998,2]
[408744826,1774186241472,-642.97122016,0.00011998,2]
[408744827,1774186241482,-642.97122016,0.00011998,2]
[408744828,1774186241492,-642.97122016,0.00011998,2]
[408744829,1774186241501,-642.97122016,0.00011998,2]
[408744830,1774186241510,-642.97122016,0.00011998,2]
[408744831,1774186241520,-642.97122016,0.00011998,2]
[408744832,1774186241531,-642.97122016,0.00011998,2]
[408744833,1774186241541,-642.97122016,0.00011998,2]
[408744834,1774186241550,-642.97122016,0.00011998,2]
[408744835,1774186241559,-642.97122016,0.00011998,2]
[408744836,1774186241569,-642.97122016,0.00011998,2]
[408744837,1774186241578,-642.97122016,0.00011998,2]
[408744838,1774186241587,-642.97122016,0.00011998,2]
[408744839,1774186241596,-642.97122016,0.00011998,2]
[408744840,1774186241604,-642.97122016,0.00011998,2]
[408744841,1774186241613,-624.06030193,0.00011998,2]
[408744842,1774186241623,-624.06030193,0.00011998,2]
[408744843,1774186241631,-624.06030193,0.00011998,2]
[408744844,1774186241640,-624.06030193,0.00011998,2]
[408744845,1774186241650,-624.06030193,0.00011998,2]
[408744846,1774186241659,-624.06030193,0.00011998,2]
[408744847,1774186241668,-624.06030193,0.00011998,2]
[408744848,1774186241676,-624.06030193,0.00011998,2]
[408744849,1774186241686,-624.06030193,0.00011998,2]
[408744850,1774186241695,-624.06030193,0.00011998,2]
[408744851,1774186241704,-624.06030193,0.00011998,2]
[408744852,1774186241713,-624.06030193,0.00011998,2]
[408744853,1774186241722,-624.06030193,0.00011998,2]
[408744854,1774186241731,-624.06030193,0.00011998,2]
[408744855,1774186241740,-624.06030193,0.00011998,2]
[408744856,1774186241750,-624.06030193,0.00011998,2]
[408744857,1774186241759,-624.06030193,0.00011998,2]
[408744858,1774186241768,-500.0,0.00011998,2]
[408744859,1774186241777,-499.99,0.00012,2]
[408744860,1774186241786,-451.74,0.00012,2]
[408744861,1774186241795,-499.99,0.00012,2]
[408744862,1774186241804,-4619.96,0.00012,2]
[408744863,1774186241813,-9999.99,0.00012,2]
[408744864,1774186241823,-299.99,0.00012,2]
[408744865,1774186241832,-1089.51,0.00012147,2]
[408744866,1774186241841,-160.03,0.00012175,2]
[408744867,1774186241851,-10012.77639511,0.00012256,2]
[408744868,1774186241860,-500.0,0.00012272,2]
[408744869,1774186241870,-466.5359,0.00012286,2]
[408744870,1774186241880,-1000.0,0.00012321,2]
[408744871,1774186241891,-500.0,0.00012321,2]
[408744872,1774186241900,-589.03973837,0.00012321,2]
[408744873,1774186241909,-1000.0,0.00012321,2]
[408744874,1774186241918,-1000.0,0.00012321,2]
[408744875,1774186241927,-174.19,0.00012346,2]
[408744876,1774186241938,-729.0,0.00012378,2]
[408744877,1774186241950,-383.47,0.00012407,2]
[408744878,1774186241959,-500.63590136,0.00012421,2]
[408744879,1774186241968,-1000.0,0.00012421,2]
[408744880,1774186241977,-1089.51,0.00012421,2]
[408744881,1774186241987,-5000.0,0.00012428,2]
[408744882,1774186241996,-300.0,0.00012428,2]
[408744883,1774186242005,-2509.48152443,0.00012428,2]
[408744884,1774186242015,-250.0,0.00012428,2]
[408744885,1774186242024,-193.0,0.00012428,2]
[408744886,1774186242033,-191.2409966,0.000125,2]
[408744887,1774186242043,-258.73827913,0.000125,2]
[408744888,1774186242052,-282.06050281,0.000125,2]
[408744889,1774186242065,-273.36304844,0.000125,2]
[408744890,1774186242074,-500.0,0.00012517,2]
[408744891,1774186242083,-500.0,0.00012546,2]
[408744892,1774186242092,-250.0,0.00012553,2]
[408744893,1774186242103,-500.58140027,0.00012573,2]
[408744894,1774186242113,-1974.4588,0.00012583,2]
[408744895,1774186242122,-29986.2326,0.00012583,2]
[408744896,1774186242131,-2500.0,0.00012583,2]
[408744897,1774186242140,-19026.00984182,0.0001261,2]
[408744898,1774186242150,-376.99895232,0.0001261,2]
[408744899,1774186242160,-1981.82998442,0.0001261,2]
[408744900,1774186242169,-193.29819846,0.0001261,2]
[408744902,1774186242178,-165.89980804,0.0001261,2]
[408744904,1774186242188,-1227.0,0.00012624,2]
[408744906,1774186242197,-1294.24840796,0.00012649,2]
[408744907,1774186242206,-256.257,0.00012672,2]
[408744908,1774186242216,-4736.24,0.00012672,2]
[408744909,1774186242225,-171.38923203,0.00012673,2]
[408744910,1774186242234,-500.0,0.00012673,2]
[408744911,1774186242243,-500.0,0.00012673,2]
[408744912,1774186242253,-165.9029998,0.00012673,2]
[408744913,1774186242262,-436.25033601,0.00012673,2]
[408744914,1774186242271,-1420113.49020234,0.00012683,2]
[408744915,1774186242283,-768.71294345,0.00012683,2]
[408744923,1774186243002,-1027.23724345,0.00012683,2]
[408744924,1774186243014,-914.0,0.00012683,2]
[408744925,1774186243052,-7603.59298496,0.00012683,2]
[408744930,1774186245963,-107147.54050751,0.00012683,2]
[408744933,1774186245979,-2139.7796619,0.00012683,2]
[408744935,1774186245991,-387.93218086,0.00012683,2]
[408744942,1774186413737,686.22,0.00016,120]
[408744947,1774186538963,-153.82161932,0.000116,2]
[408744948,1774186538990,-160.11357121,0.000116,2]
[408744949,1774186539015,-186.42007747,0.000117,2]
[408744952,1774186604784,617.59,0.00016,120]
[408744958,1774186798508,555.84,0.00016,120]
[408744961,1774186877645,1834.45,0.00010929,2]
[408744963,1774186923901,1519.89176521,0.00010912,2]
[408744964,1774186934674,6645.66823479,0.00010876,2]
[408744965,1774186934696,10000.01,0.00010876,2]
[408744966,1774186934717,10000.01,0.00010876,2]
[408744967,1774186934738,10000.01,0.00010876,2]
[408744968,1774186934760,10000.01,0.00010876,2]
[408744969,1774186934781,10000.01,0.00010876,2]
[408744970,1774186934804,10000.01,0.00010876,2]
[408744971,1774186934825,10000.01,0.00010876,2]
[408744972,1774186934846,10000.01,0.00010876,2]
[408744973,1774186934867,10000.01,0.00010876,2]
[408744977,1774186976399,-10000.01,0.00010876,2]
[408744978,1774186976413,-10000.01,0.00010876,2]
[408744979,1774186976427,-10000.01,0.00010876,2]
[408744980,1774186976440,-10000.01,0.00010876,2]
[408744981,1774186976460,-10000.01,0.00010876,2]
[408744982,1774186989095,500.25,0.00016,120]
[408744983,1774187000944,-3333.39823479,0.00010876,2]
[408744984,1774187000970,-3333.21353042,0.00010876,2]
[408744985,1774187031913,1042.04499952,0.000125,10]
[408744989,1774187098589,8525.42,0.00010752,2]
[408744990,1774187166938,220.0,0.00010876,2]
[408744991,1774187173031,158.0,0.00010876,2]
[408744992,1774187179797,450.23,0.00016,120]
[408745003,1774187227187,209.0,0.00010876,2]
[408745004,1774187233116,158.0,0.00010876,2]
[408745005,1774187269492,-190.0372579,0.00010912,2]
[408745006,1774187269756,500.0,0.00010693,2]
[408745007,1774187287149,199.0,0.00010912,2]
[408745008,1774187294056,158.0,0.00010912,2]
[408745009,1774187345323,189.0,0.00010912,2]
[408745010,1774187351261,158.0,0.00010912,2]
[408745011,1774187372133,405.2,0.00016,120]
[408745012,1774187381505,6070.46,0.0001061,2]
[408745013,1774187406730,179.0,0.00010912,2]
[408745014,1774187411995,155.0,0.00010912,2]
[408745015,1774187412895,158.0,0.00010912,2]
[408745022,1774187431798,-150.0,0.00010959,2]
[408745024,1774187431808,-263.0,0.00010959,2]
[408745026,1774187431818,-250.0,0.00010962,2]
[408745028,1774187431827,-2509.48152443,0.00010987,2]
[408745030,1774187431836,-619.46634372,0.00011012,2]
[408745032,1774187431848,-1266.72365628,0.00011012,2]
[408745034,1774187431858,-250.0,0.00011044,2]
[408745036,1774187431868,-300.0,0.00011361,2]
[408745038,1774187431878,-300.0,0.00011361,2]
[408745040,1774187431887,-300.0,0.00011362,2]
[408745042,1774187431896,-1200.0,0.00011362,2]
[408745044,1774187431906,-13215.21,0.00011365,2]
[408745046,1774187431917,-654.83616178,0.00011446,2]
[408745048,1774187431926,-29290.71054011,0.00011446,2]
[408745050,1774187431936,-165.89980804,0.00011472,2]
[408745052,1774187431946,-3955.43437636,0.00011472,2]
[408745054,1774187431956,-1574.18400216,0.00011472,2]
[408745056,1774187431965,-503.40747599,0.00011473,2]
[408745058,1774187431974,-171.38923203,0.00011473,2]
[408745060,1774187431983,-500.0,0.00011473,2]
[408745062,1774187431992,-500.0,0.00011473,2]
[408745064,1774187432001,-500.0,0.00011473,2]
[408745066,1774187432011,-500.0,0.00011473,2]
[408745068,1774187432020,-501.00729745,0.00011473,2]
[408745070,1774187432030,-500.0,0.00011473,2]
[408745072,1774187432039,-500.0,0.00011473,2]
[408745074,1774187432049,-500.0,0.00011473,2]
[408745076,1774187432058,-500.0,0.00011473,2]
[408745078,1774187432067,-500.0,0.00011473,2]
[408745080,1774187432076,-9967.27210003,0.00011473,2]
[408745082,1774187432085,-41657.11059683,0.00011473,2]
[408745084,1774187432095,-207850.24173356,0.00011477,2]
[408745086,1774187432106,-38857.96209863,0.00011477,2]
[408745088,1774187432276,-500.0,0.00011476,2]
[408745089,1774187432286,-156.51777743,0.00011476,2]
[408745090,1774187432296,-500.0,0.00011476,2]
[408745091,1774187432306,-142.85669087,0.00011476,2]
[408745099,1774187438880,-852.19227515,0.00011467,2]
[408745100,1774187438889,-357.14330913,0.00011476,2]
[408745101,1774187438899,-500.0,0.00011476,2]
[408745102,1774187438908,-328.29647594,0.00011476,2]
[408745103,1774187438917,-500.0,0.00011476,2]
[408745104,1774187438926,-181.43399468,0.00011476,2]
[408745105,1774187438935,-500.0,0.00011476,2]
[408745106,1774187438945,-500.0,0.00011476,2]
[408745107,1774187438954,-500.0,0.00011476,2]
[408745108,1774187438964,-500.0,0.00011476,2]
[408745109,1774187438974,-500.0,0.00011476,2]
[408745110,1774187438983,-500.0,0.00011476,2]
[408745111,1774187438992,-500.0,0.00011476,2]
[408745112,1774187439001,-500.0,0.00011476,2]
[408745113,1774187439010,-500.0,0.00011476,2]
[408745114,1774187439019,-500.0,0.00011476,2]
[408745115,1774187439029,-210.10186161,0.00011476,2]
[408745116,1774187439038,-500.0,0.00011476,2]
[408745117,1774187439047,-5464.45448618,0.00011477,2]
[408745118,1774187439075,-646.50420897,0.00011477,2]
[408745119,1774187439087,-3363.89899507,0.00011477,2]
[408745120,1774187439104,-3826.30887082,0.00011477,2]
[408745121,1774187439143,-1461.99055725,0.00011477,2]
[408745124,1774187440080,-290.24873287,0.00011477,2]
[408745125,1774187440139,-1238238.39031665,0.00011477,2]
[408745126,1774187440148,-852.19227515,0.00011537,2]
[408745127,1774187440157,-150.0,0.00011546,2]
[408745128,1774187440166,-500.0,0.00011546,2]
[408745129,1774187440175,-2485936.9937,0.00011547,2]
[408745130,1774187440186,-3527.0394,0.00011573,2]
[408745131,1774187440195,-1974.4588,0.00011573,2]
[408745132,1774187440204,-29986.2326,0.00011573,2]
[408745133,1774187440213,-1000.0,0.00011576,2]
[408745134,1774187440223,-2500.0,0.00011576,2]
[408745135,1774187440235,-5864.84,0.00011577,2]
[408745136,1774187440253,-9999.99,0.00011577,2]
[408745137,1774187440273,-9999.99,0.00011577,2]
[408745138,1774187440295,-1568.76,0.00011577,2]
[408745139,1774187440315,-150.99,0.00011577,2]
[408745140,1774187440335,-29290.7105401,0.00011623,2]
[408745141,1774187440356,-466.5359,0.00011645,2]
[408745142,1774187440378,-9441.15,0.00011645,2]
[408745143,1774187440398,-1644.75,0.00011645,2]
[408745144,1774187440416,-4999.99,0.00011645,2]
[408745145,1774187440426,-150.99,0.00011645,2]
[408745146,1774187440437,-9999.99,0.00011645,2]
[408745147,1774187440446,-999.99,0.00011645,2]
[408745148,1774187440456,-1543.75,0.00011645,2]
[408745149,1774187440466,-4619.96,0.00011645,2]
[408745150,1774187440475,-299.99,0.00011645,2]
[408745151,1774187440484,-9999.99,0.00011645,2]
[408745152,1774187440493,-354.53,0.00011645,2]
[408745153,1774187440503,-499.99,0.00011645,2]
[408745154,1774187440513,-344.818,0.00011647,2]
[408745155,1774187440523,-6343.35,0.00011647,2]
[408745156,1774187440533,-151.0,0.00011669,2]
[408745157,1774187440542,-503.38189689,0.00011673,2]
[408745158,1774187440551,-167.52277852,0.00011673,2]
[408745159,1774187440561,-500.0,0.00011673,2]
[408745160,1774187440571,-500.0,0.00011673,2]